fUSD/lending_fUSD_20250220
["ID","MTS","AMOUNT","RATE_DAILY","PERIOD"]
[353825308,1740081040274,-376.4,0.00010849,2]
[353825309,1740081040284,-150.0,0.00010849,2]
[353825311,1740081040293,-300.0,0.00010849,2]
[353825313,1740081040303,-1606.85,0.00010849,2]
[353825315,1740081040312,-150.0,0.00010849,2]
[353825317,1740081040321,-150.0,0.00010849,2]
[353825319,1740081040330,-150.0,0.00010849,2]
[353825321,1740081040339,-624.69,0.00010866,2]
[353825323,1740081040350,-500.0,0.0001089,2]
[353825325,1740081040359,-441.78016264,0.000109,2]
[353825327,1740081040368,-500.0,0.00010958,7]
[353825329,1740081040378,-500.0,0.00010958,2]
[353825331,1740081040388,-233.29341737,0.00010958,2]
[353825333,1740081040398,-500.0,0.00010958,2]
[353825335,1740081040408,-500.0,0.00010958,2]
[353825337,1740081040418,-235.0,0.00010999,2]
[353825339,1740081040427,-150.0,0.00011003,2]
[353825341,1740081040437,-162.5,0.0001104,2]
[353825343,1740081040446,-150.0,0.00011046,2]
[353825345,1740081040455,-150.0,0.0001107,2]
[353825347,1740081040465,-500.0,0.00011097,2]
[353825349,1740081040474,-569.05,0.00011097,2]
[353825351,1740081040484,-501.99,0.00011097,2]
[353825353,1740081040493,-500.0,0.00011097,2]
[353825355,1740081040503,-500.0,0.00011097,2]
[353825357,1740081040513,-548.97,0.00011097,2]
[353825360,1740081040522,-500.0,0.00011097,2]
[353825361,1740081040532,-527.41021183,0.00011097,2]
[353825363,1740081040542,-500.0,0.00011097,2]
[353825365,1740081040551,-616.88,0.00011097,2]
[353825367,1740081040560,-376.20139798,0.00011097,2]
[353825369,1740081040570,-639.27,0.00011097,2]
[353825371,1740081040579,-500.0,0.00011097,2]
[353825373,1740081040589,-523.1,0.00011097,2]
[353825375,1740081040599,-500.0,0.00011097,2]
[353825377,1740081040609,-500.0,0.00011097,2]
[353825379,1740081040618,-500.0,0.00011097,2]
[353825381,1740081040628,-553.07,0.00011097,2]
[353825383,1740081040639,-500.0,0.00011097,2]
[353825385,1740081040649,-500.0,0.00011098,2]
[353825387,1740081040658,-610.31,0.00011098,2]
[353825389,1740081040668,-500.0,0.00011098,2]
[353825391,1740081040677,-500.0,0.00011098,2]
[353825393,1740081040687,-648.23,0.00011098,2]
[353825395,1740081040696,-529.94,0.00011098,2]
[353825397,1740081040706,-500.0,0.00011098,2]
[353825399,1740081040714,-641.92,0.00011098,2]
[353825401,1740081040724,-500.0,0.00011098,2]
[353825403,1740081040733,-564.03,0.00011098,2]
[353825405,1740081040743,-500.0,0.00011098,2]
[353825407,1740081040752,-500.0,0.00011098,2]
[353825409,1740081040761,-566.11,0.00011098,2]
[353825411,1740081040771,-500.0,0.00011098,2]
[353825413,1740081040780,-500.0,0.00011098,2]
[353825415,1740081040790,-500.0,0.00011098,2]
[353825417,1740081040799,-500.0,0.00011098,2]
[353825419,1740081040808,-9215.65485375,0.00011099,2]
[353825421,1740081040817,-9215.65485375,0.00011099,2]
[353825423,1740081040827,-9215.65485375,0.00011099,2]
[353825425,1740081040838,-9215.65485375,0.00011099,2]
[353825427,1740081040847,-150.0,0.00011127,2]
[353825429,1740081040857,-682.685,0.00011127,2]
[353825431,1740081040866,-150.0,0.00011145,2]
[353825433,1740081040876,-500.0,0.0001118,2]
[353825435,1740081040887,-500.0,0.0001118,2]
[353825437,1740081040897,-279.58,0.0001118,2]
[353825439,1740081040907,-337.44,0.0001118,2]
[353825442,1740081040917,-380.12,0.0001118,2]
[353825443,1740081040927,-355.97,0.0001118,2]
[353825446,1740081040936,-264.6,0.0001118,2]
[353825448,1740081040947,-175.26,0.0001118,2]
[353825450,1740081040960,-499.41,0.0001118,2]
[353825451,1740081040969,-500.0,0.0001118,2]
[353825453,1740081040978,-502.09,0.0001118,2]
[353825455,1740081040988,-500.0,0.0001118,2]
[353825457,1740081040998,-554.3,0.0001118,2]
[353825459,1740081041007,-500.0,0.0001118,2]
[353825461,1740081041017,-500.0,0.0001118,2]
[353825463,1740081041027,-302.0,0.0001118,2]
[353825465,1740081041037,-665.73925686,0.00011181,2]
[353825467,1740081041045,-441.78016256,0.0001121,2]
[353825469,1740081041055,-324.0,0.0001122,2]
[353825471,1740081041064,-500.0,0.00011262,2]
[353825473,1740081041074,-500.0,0.00011262,2]
[353825475,1740081041084,-500.0,0.00011262,2]
[353825477,1740081041093,-500.0,0.00011263,2]
[353825479,1740081041103,-500.0,0.00011263,2]
[353825482,1740081041113,-310.35,0.00011263,2]
[353825484,1740081041123,-500.0,0.00011313,2]
[353825486,1740081041132,-500.0,0.00011313,2]
[353825488,1740081041142,-500.0,0.00011313,2]
[353825490,1740081041152,-500.0,0.00011313,2]
[353825492,1740081041161,-525.73,0.00011313,2]
[353825494,1740081041170,-500.0,0.00011313,2]
[353825496,1740081041179,-500.0,0.00011313,2]
[353825497,1740081041189,-500.0,0.00011313,2]
[353825500,1740081041200,-500.0,0.00011313,2]
[353825502,1740081041210,-500.0,0.00011313,2]
[353825503,1740081041219,-202.0,0.00011313,2]
[353825505,1740081041229,-500.0,0.00011313,2]
[353825508,1740081041239,-602.43323526,0.00011313,2]
[353825510,1740081041248,-500.0,0.00011313,2]
[353825511,1740081041258,-500.0,0.00011313,2]
[353825513,1740081041268,-630.16,0.00011313,2]
[353825515,1740081041282,-500.0,0.00011313,2]
[353825518,1740081041293,-177.87515493,0.00011313,2]
[353825520,1740081041302,-500.0,0.00011313,2]
[353825522,1740081041312,-616.92,0.00011313,2]
[353825524,1740081041322,-500.0,0.00011313,2]
[353825525,1740081041331,-500.0,0.00011313,2]
[353825527,1740081041340,-500.0,0.00011313,2]
[353825529,1740081041351,-500.0,0.00011313,2]
[353825531,1740081041360,-500.0,0.00011313,2]
[353825533,1740081041369,-500.0,0.00011313,2]
[353825535,1740081041378,-260.34,0.00011344,2]
[353825537,1740081041387,-230.74,0.00011344,2]
[353825539,1740081041397,-500.0,0.00011344,2]
[353825541,1740081041406,-500.0,0.00011345,2]
[353825543,1740081041416,-268.75,0.00011345,2]
[353825545,1740081041425,-324.0,0.0001136,2]
[353825547,1740081041435,-500.0,0.00011395,2]
[353825549,1740081041444,-500.0,0.00011395,2]
[353825551,1740081041454,-500.0,0.00011395,2]
[353825553,1740081041463,-500.0,0.00011395,2]
[353825555,1740081041472,-9215.65485375,0.00011398,2]
[353825557,1740081041481,-150.0,0.00011411,2]
[353825560,1740081041491,-150.0,0.00011418,2]
[353825561,1740081041500,-500.0,0.00011426,2]
[353825563,1740081041509,-500.0,0.00011427,2]
[353825565,1740081041518,-150.0,0.00011437,2]
[353825567,1740081041527,-150.0,0.00011449,2]
[353825569,1740081041536,-150.0,0.0001145,2]
[353825571,1740081041547,-500.0,0.00011478,2]
[353825573,1740081041555,-288.89052235,0.00011478,2]
[353825575,1740081041565,-193.41,0.00011478,2]
[353825577,1740081041575,-595.03,0.00011478,2]
[353825579,1740081041585,-162.271,0.00011479,2]
[353825582,1740081041595,-500.0,0.00011508,2]
[353825584,1740081041604,-500.0,0.00011509,2]
[353825586,1740081041614,-324.0,0.0001151,2]
[353825588,1740081041623,-441.78016256,0.00011521,2]
[353825590,1740081041633,-2217.082,0.00011534,2]
[353825592,1740081041645,-500.0,0.0001156,2]
[353825594,1740081041654,-150.0,0.00011586,2]
[353825596,1740081041663,-500.0,0.0001159,2]
[353825598,1740081041673,-500.0,0.00011591,2]
[353825600,1740081041682,-500.0,0.00011642,2]
[353825602,1740081041692,-250.0,0.00011652,2]
[353825604,1740081041701,-324.0,0.0001166,2]
[353825606,1740081041710,-152.38,0.00011671,2]
[353825608,1740081041719,-500.0,0.00011673,2]
[353825610,1740081041728,-500.0,0.00011673,2]
[353825612,1740081041738,-510.28746931,0.00011724,2]
[353825614,1740081041747,-500.0,0.00011755,2]
[353825616,1740081041757,-500.0,0.00011756,2]
[353825618,1740081041765,-1000.0,0.0001176,2]
[353825620,1740081041775,-151.200114,0.00011762,2]
[353825622,1740081041784,-9215.65485375,0.00011772,2]
[353825624,1740081041793,-150.0,0.00011779,2]
[353825626,1740081041802,-150.0,0.00011791,2]
[353825628,1740081041811,-324.0,0.000118,2]
[353825630,1740081041820,-200.0,0.000118,4]
[353825632,1740081041830,-441.78016256,0.00011831,2]
[353825634,1740081041839,-567.55,0.00011836,2]
[353825636,1740081041849,-500.0,0.00011837,2]
[353825638,1740081041858,-298.57568122,0.00011838,2]
[353825640,1740081041867,-150.0,0.00011859,2]
[353825642,1740081041877,-500.0,0.000119,4]
[353825644,1740081041886,-500.0,0.00011919,2]
[353825646,1740081041895,-206.0,0.0001195,2]
[353825648,1740081041904,-324.0,0.0001195,2]
[353825650,1740081041913,-600.0,0.00012,2]
[353825652,1740081041922,-4466.66613097,0.00012,2]
[353825654,1740081041931,-500.0,0.00012001,2]
[353825656,1740081041940,-1000.0,0.00012054,2]
[353825657,1740081041950,-439.24,0.00012082,2]
[353825660,1740081041960,-209.23,0.00012082,2]
[353825662,1740081041970,-439.24,0.00012082,2]
[353825664,1740081041979,-987.13,0.00012082,2]
[353825666,1740081041988,-439.24,0.00012082,2]
[353825668,1740081041997,-439.24,0.00012082,2]
[353825669,1740081042007,-354.49,0.00012084,2]
[353825672,1740081042016,-150.0,0.00012091,2]
[353825673,1740081042026,-206.0,0.000121,2]
[353825676,1740081042035,-324.0,0.000121,2]
[353825678,1740081042045,-2000.0,0.000121,2]
[353825680,1740081042054,-2000.0,0.000121,2]
[353825682,1740081042063,-2000.0,0.000121,2]
[353825684,1740081042072,-2000.0,0.000121,2]
[353825686,1740081042081,-2000.0,0.000121,2]
[353825688,1740081042090,-2000.0,0.000121,2]
[353825690,1740081042100,-2000.0,0.000121,2]
[353825692,1740081042109,-2000.0,0.000121,2]
[353825693,1740081042119,-2000.0,0.000121,2]
[353825695,1740081042130,-2000.0,0.000121,2]
[353825697,1740081042139,-535.9703598,0.00012109,2]
[353825699,1740081042149,-150.0,0.00012111,2]
[353825701,1740081042158,-4466.66613094,0.00012141,2]
[353825703,1740081042167,-441.78016256,0.00012141,2]
[353825705,1740081042176,-152.0,0.00012147,3]
[353825707,1740081042185,-9215.65485375,0.00012147,2]
[353825709,1740081042194,-323.86149241,0.000122,2]
[353825711,1740081042203,-2006.92,0.000122,2]
[353825713,1740081042212,-44428.0,0.0001224,2]
[353825715,1740081042221,-206.0,0.0001225,2]
[353825717,1740081042231,-324.0,0.0001225,2]
[353825719,1740081042240,-4466.66613094,0.00012282,2]
[353825721,1740081042249,-68471.83622912,0.00012299,2]
[353825723,1740081042258,-181.7277125,0.000123,2]
[353825725,1740081042271,-696.88730994,0.000123,2]
[353825727,1740081042281,-55555.0,0.000123,2]
[353825729,1740081042290,-5000.0,0.000123,2]
[353825731,1740081042299,-150.0,0.00012309,2]
[353825733,1740081042310,-409242.8701481,0.00012311,2]
[353825735,1740081042320,-3872.78306676,0.00012317,2]
[353825737,1740081042331,-6041.54763142,0.00012318,2]
[353825739,1740081042340,-15726.69945918,0.00012324,2]
[353825741,1740081042351,-136414.29004935,0.00012326,2]
[353825743,1740081042360,-610.28431001,0.00012327,2]
[353825745,1740081042370,-200.0,0.00012328,2]
[353825747,1740081042379,-151.0,0.00012329,2]
[353825749,1740081042389,-151.0,0.00012329,2]
[353825751,1740081042398,-151.0,0.00012329,2]
[353825753,1740081042407,-151.0,0.00012329,2]
[353825755,1740081042416,-151.0,0.00012329,2]
[353825757,1740081042426,-151.0,0.00012329,2]
[353825759,1740081042436,-151.0,0.00012329,2]
[353825761,1740081042445,-151.0,0.00012329,2]
[353825763,1740081042454,-151.0,0.00012329,2]
[353825765,1740081042463,-151.0,0.00012329,2]
[353825767,1740081042472,-151.0,0.00012329,2]
[353825769,1740081042481,-151.0,0.00012329,2]
[353825788,1740081042490,-151.0,0.00012329,2]
[353825790,1740081042657,-151.0,0.00012329,2]
[353825792,1740081042667,-500.0,0.00012329,2]
[353825794,1740081042676,-200.0,0.00012331,2]
[353825797,1740081042685,-428.62538284,0.00012331,2]
[353825799,1740081042695,-21046.35239907,0.00012332,2]
[353825801,1740081042704,-835.79739925,0.00012332,2]
[353825802,1740081042713,-15726.69945918,0.00012338,2]
[353825804,1740081042722,-15726.69945918,0.00012338,2]
[353825806,1740081042731,-136414.29004935,0.00012345,2]
[353825808,1740081042741,-3872.78306676,0.00012345,2]
[353825810,1740081042750,-409242.8701481,0.00012347,2]
[353825812,1740081042759,-58203.73344538,0.00012347,2]
[353825814,1740081042768,-428.62538284,0.00012348,2]
[353825816,1740081042777,-60597.97966308,0.00012349,2]
[353825818,1740081042787,-610.28431001,0.00012351,2]
[353825820,1740081042796,-21046.35239907,0.00012351,2]
[353825822,1740081042805,-58203.73344538,0.00012355,2]
[353825824,1740081042814,-889926.81503966,0.00012357,2]
[353825826,1740081042823,-200.0,0.00012358,2]
[353825828,1740081042832,-916.1268368,0.00012358,2]
[353825830,1740081042841,-2419.8339416,0.00012358,2]
[353825832,1740081042850,-1380.0,0.00012359,2]
[353825834,1740081042859,-1150.34875379,0.0001236,2]
[353825836,1740081042869,-286.51773933,0.00012362,2]
[353825838,1740081042878,-835.79739925,0.00012363,2]
[353825839,1740081042887,-284343.96521905,0.00012364,2]
[353825840,1740081042896,-65162.05774654,0.00012365,2]
[353825841,1740081042905,-1103215.247555,0.00012365,2]
[353825842,1740081042914,-1165.92694082,0.00012365,2]
[353825843,1740081042923,-11338.27676459,0.00012365,2]
[353825844,1740081042932,-1165.92694082,0.00012366,2]
[353825845,1740081042941,-4305.42508206,0.00012368,2]
[353825846,1740081042950,-610.28431001,0.00012368,2]
[353825847,1740081042961,-136414.29004935,0.00012368,2]
[353825848,1740081042970,-11338.27676459,0.00012369,2]
[353825849,1740081042979,-60597.97966308,0.0001237,2]
[353825850,1740081042988,-1150.34875379,0.0001237,2]
[353825852,1740081042997,-200.0,0.00012371,2]
[353825854,1740081043006,-859.55321798,0.00012372,2]
[353825856,1740081043016,-409242.8701481,0.00012372,2]
[353825858,1740081043025,-200.0,0.00012373,2]
[353825860,1740081043035,-31837.39085592,0.00012375,2]
[353825865,1740081043068,-33324.66689062,0.00012375,2]
[353825867,1740081043078,-200.0,0.00012375,2]
[353825869,1740081043087,-3872.78306676,0.00012375,2]
[353825871,1740081043096,-54052.83858758,0.00012376,2]
[353825878,1740081043153,-315.780417,0.00012376,2]
[353825890,1740081043258,-707.3898016,0.00012376,2]
[353825892,1740081043271,-642.84999967,0.00012376,2]
[353825894,1740081043283,-553.69999999,0.00012376,2]
[353825897,1740081043300,-490.44133234,0.00012376,2]
[353825899,1740081043311,-672.54591315,0.00012376,2]
[353825903,1740081043338,-78978.74399802,0.00012376,2]
[353825905,1740081043347,-82967.18117904,0.00012376,2]
[353825907,1740081043357,-200.0,0.00012378,2]
[353825909,1740081043367,-1150.34875379,0.00012379,2]
[353825911,1740081043376,-6041.54763142,0.0001238,2]
[353825913,1740081043385,-1700.28799067,0.00012381,2]
[353825915,1740081043395,-428.62538284,0.00012381,2]
[353825917,1740081043404,-1165.92694082,0.00012381,2]
[353825919,1740081043413,-200.0,0.00012382,2]
[353825921,1740081043423,-21046.35239907,0.00012383,2]
[353825923,1740081043432,-1361.43653756,0.00012384,2]
[353825925,1740081043442,-1700.28799067,0.00012384,2]
[353825927,1740081043451,-200.0,0.00012385,2]
[353825929,1740081043460,-200.0,0.00012386,2]
[353825931,1740081043469,-6041.54763142,0.00012387,2]
[353825933,1740081043478,-60597.97966308,0.00012387,2]
[353825935,1740081043489,-200.0,0.00012389,2]
[353825937,1740081043499,-610.28431001,0.0001239,2]
[353825939,1740081043508,-388.64231361,0.0001239,2]
[353825941,1740081043517,-40388.90711142,0.0001239,2]
[353825943,1740081043527,-206.0,0.0001239,2]
[353825945,1740081043536,-324.0,0.0001239,2]
[353825947,1740081043545,-166.81343385,0.0001239,2]
[353825949,1740081043555,-968.19576669,0.0001239,2]
[353825951,1740081043564,-21046.35239907,0.0001239,2]
[353825953,1740081043574,-40388.90711142,0.00012391,2]
[353825955,1740081043583,-284343.96521905,0.00012391,2]
[353825957,1740081043592,-377096.39224579,0.00012392,2]
[353826178,1740081045821,-1000.0,0.00012054,2]
[353826179,1740081045830,-968.8047725,0.00012328,2]
[353826180,1740081045842,-31.1952275,0.00012328,2]
[353826181,1740081045851,-799.0983725,0.00012392,2]
[353826182,1740081045875,-20225.04983083,0.00012392,2]
[353826184,1740081045887,-631.0339,0.00012392,2]
[353826186,1740081045899,-71268.87703326,0.00012392,2]
[353826190,1740081045933,-322.68133713,0.00012392,2]
[353826196,1740081045986,-3247.85860811,0.00012392,2]
[353826198,1740081045998,-1331.95165401,0.00012392,2]
[353827672,1740081087117,8156.94,8.661e-05,7]
[353827673,1740081087141,5473.99975567,8.661e-05,7]
[353827674,1740081087163,10000.0,8.661e-05,7]
[353827675,1740081087184,10000.0,8.661e-05,7]
[353827676,1740081087205,1350.63530633,8.661e-05,7]
[353827677,1740081312779,708.64,9.144e-05,2]
[353827678,1740081617539,352.18,0.00013918,30]
[353827683,1740082237917,-3155.0,0.0001,2]
[353827684,1740082237926,-550.0,0.0001,2]
[353827685,1740082237935,-500.0,0.0001015,2]
[353827686,1740082237944,-150.0,0.0001015,2]
[353827687,1740082237953,-814.5964308,0.00010245,2]
[353827688,1740082237962,-300.0,0.00010249,2]
[353827689,1740082237971,-250.0,0.00010251,2]
[353827690,1740082237981,-2000.0,0.0001026,2]
[353827691,1740082237990,-196.74,0.00010263,2]
[353827692,1740082237999,-5552.0,0.000103,3]
[353827693,1740082238008,-1000.0,0.00010305,2]
[353827694,1740082238018,-1225.27403561,0.00010314,2]
[353827695,1740082238028,-23890.0,0.00010317,2]
[353827696,1740082238037,-172.67,0.00010345,2]
[353827697,1740082238046,-218.16,0.00010356,2]
[353827699,1740082238055,-1905.74,0.00010413,2]
[353827701,1740082238064,-170.77,0.00010552,2]
[353827702,1740082238073,-5552.0,0.000106,5]
[353827703,1740082238084,-435.91,0.00010634,2]
[353827704,1740082238093,-435.91,0.00010651,2]
[353827705,1740082238102,-435.91,0.00010667,2]
[353827707,1740082238111,-435.91,0.00010684,2]
[353827709,1740082238120,-262.71986493,0.00010698,2]
[353827711,1740082238129,-435.91,0.00010701,2]
[353827713,1740082238138,-289.02,0.00010704,2]
[353827715,1740082238148,-435.91,0.00010718,2]
[353827717,1740082238156,-435.91,0.00010735,2]
[353827719,1740082238166,-435.91,0.00010751,2]
[353827721,1740082238175,-435.91,0.00010768,2]
[353827723,1740082238184,-435.91,0.00010785,2]
[353827725,1740082238193,-150.0,0.00010785,2]
[353827727,1740082238202,-150.0,0.00010793,2]
[353827729,1740082238211,-435.91,0.00010802,2]
[353827731,1740082238221,-500.0,0.00010803,2]
[353827733,1740082238230,-435.91,0.00010818,2]
[353827735,1740082238239,-196.74,0.00010834,2]
[353827737,1740082238248,-435.91,0.00010835,2]
[353827739,1740082238257,-435.91,0.00010852,2]
[353827741,1740082238266,-435.91,0.00010869,2]
[353827743,1740082238276,-181.12,0.00010885,2]
[353827745,1740082238285,-435.91,0.00010886,2]
[353827747,1740082238294,-368.15013566,0.000109,2]
[353827749,1740082238303,-435.91,0.00010902,2]
[353827751,1740082238313,-435.91,0.00010919,2]
[353827753,1740082238322,-435.91,0.00010936,2]
[353827755,1740082238331,-213.29247224,0.00010937,2]
[353827757,1740082238341,-435.91,0.00010953,2]
[353827759,1740082238350,-150.0,0.00010955,2]
[353827762,1740082238362,-171.487164,0.00010958,2]
[353827763,1740082238371,-207.868765,0.00010958,2]
[353827766,1740082238380,-255.626973,0.00010958,2]
[353827767,1740082238390,-156.344404,0.00010958,2]
[353827769,1740082238399,-150.0,0.00010959,2]
[353827772,1740082238408,-500.0,0.00011,2]
[353827774,1740082238418,-150.0,0.00011,2]
[353827776,1740082238427,-150.0,0.00011,2]
[353827778,1740082238437,-1539.16,0.00011011,2]
[353827780,1740082238446,-1500.0,0.0001113,2]
[353827782,1740082238455,-614.66034177,0.00011136,2]
[353827784,1740082238470,-199.93608898,0.00011136,2]
[353827786,1740082238479,-150.0,0.00011145,2]
[353827788,1740082238488,-150.0,0.00011145,2]
[353827790,1740082238497,-150.0,0.00011145,2]
[353827792,1740082238507,-368.15013546,0.00011176,2]
[353827794,1740082238515,-1735.37,0.00011177,2]
[353827796,1740082238524,-420.0,0.00011272,2]
[353827798,1740082238534,-171.487164,0.00011287,2]
[353827800,1740082238543,-150.0,0.000113,2]
[353827802,1740082238551,-150.0,0.00011322,2]
[353827804,1740082238561,-1274.0,0.00011366,2]
[353827806,1740082238569,-2026.0,0.00011366,2]
[353827808,1740082238579,-639.0,0.00011366,2]
[353827810,1740082238587,-569.0,0.00011366,2]
[353827811,1740082238596,-1860.78,0.00011366,2]
[353827813,1740082238605,-784.0,0.00011366,2]
[353827815,1740082238614,-1266.0,0.00011366,2]
[353827817,1740082238623,-908.0,0.00011366,2]
[353827819,1740082238632,-562.896,0.00011366,2]
[353827822,1740082238642,-4031.0,0.00011366,2]
[353827824,1740082238655,-204.026,0.00011366,2]
[353827825,1740082238664,-1224.24011848,0.00011366,2]
[353827832,1740082238719,-2693.33688152,0.00011366,2]
[353827833,1740082238728,-1009.0,0.00011366,2]
[353827834,1740082238738,-196.74,0.00011404,2]
[353827835,1740082238747,-708.64,0.00011408,2]
[353827836,1740082238756,-170.77,0.00011423,2]
[353827837,1740082238765,-368.15013546,0.00011452,2]
[353827838,1740082238774,-207.868765,0.00011452,2]
[353827839,1740082238783,-150.0,0.00011455,2]
[353827840,1740082238791,-150.0,0.00011499,2]
[353827841,1740082238800,-2000.0,0.00011508,2]
[353827842,1740082238809,-1000.0,0.00011594,2]
[353827843,1740082238818,-150.0,0.0001161,2]
[353827844,1740082238827,-150.0,0.00011676,2]
[353827845,1740082238836,-171.487164,0.00011698,2]
[353827846,1740082238845,-200.0,0.000117,4]
[353827847,1740082238853,-368.15013546,0.00011728,2]
[353827849,1740082238862,-153.85215,0.00011762,2]
[353827850,1740082238871,-150.0,0.00011764,2]
[353827852,1740082238881,-500.0,0.000118,4]
[353827854,1740082238890,-255.0,0.0001182,2]
[353827856,1740082238899,-150.0,0.00011853,2]
[353827858,1740082238908,-700.0,0.000119,4]
[353827860,1740082238917,-1060.0,0.00011912,2]
[353827862,1740082238927,-150.0,0.00011919,2]
[353827864,1740082238936,-196.74,0.00011974,2]
[353827866,1740082238945,-5296.37456472,0.00011974,2]
[353827869,1740082238955,-4028.42982137,0.00012,2]
[353827871,1740082238974,-4971.57017863,0.00012,2]
[353827873,1740082238984,-600.0,0.00012,2]
[353827875,1740082238993,-368.15013546,0.00012003,2]
[353827877,1740082239003,-814.59643075,0.00012027,2]
[353827880,1740082239012,-150.0,0.0001203,2]
[353827881,1740082239022,-2225.525,0.00012041,2]
[353827883,1740082239031,-158.315,0.00012041,2]
[353827885,1740082239040,-1000.0,0.00012054,2]
[353827887,1740082239049,-4023.63408174,0.00012055,2]
[353827890,1740082239061,-6814.97025808,0.00012055,2]
[353827987,1740082239976,-379.42299999,0.00012055,2]
[353827999,1740082240081,-894.10109856,0.00012055,2]
[353828005,1740082240134,-2249.16896147,0.00012055,2]
[353828007,1740082240146,-842.75032107,0.00012055,2]
[353828303,1740082242998,-856.793,0.00011366,2]
[353828305,1740082243009,-89.04545207,0.00012055,2]
[353828311,1740082243051,-589.99311762,0.00012055,2]
[353828587,1740082245872,-816.78,0.00010959,2]
[353828589,1740082245882,-4243.46872011,0.00012055,2]
[353828594,1740082245925,-7666.62981529,0.00012055,2]
[353828601,1740082245980,-637.40000011,0.00012055,2]
[353828608,1740082246036,-396.9484196,0.00012055,2]
[353828610,1740082246047,-280.95454024,0.00012055,2]
[353828612,1740082246059,-856.7929336,0.00012055,2]
[353830215,1740082280221,-1967.0,0.00013042,20]
[353830216,1740082288194,-3500.0,0.00013042,20]
[353830217,1740082289931,-3500.0,0.00013042,20]
[353830218,1740082294970,-3000.0,0.00013042,20]
[353830219,1740082348828,-2798.0,0.00012398,9]
[353830220,1740082386105,-0.66846745,0.00013042,20]
[353830221,1740082386148,-500.0,0.00013699,13]
[353830222,1740082386174,-507.0,0.00013699,13]
[353830223,1740082421289,-1075.0,0.000125,5]
[353830224,1740082427680,-2000.0,0.000125,5]
[353830225,1740082431928,-2000.0,0.000125,5]
[353830226,1740082441349,399.41422573,0.0002049,120]
[353830227,1740082809485,1007.16078411,0.000205,120]
[353830228,1740082835078,342.4,0.00013918,30]
[353830229,1740082874233,660.01,8.718e-05,2]
[353830230,1740083103345,366.55,8.767e-05,2]
[353830246,1740083431968,-150.0,9.986e-05,2]
[353830247,1740083431977,-150.0,9.986e-05,2]
[353830248,1740083431986,-150.0,9.999e-05,2]
[353830249,1740083431996,-1028.87,0.0001,2]
[353830250,1740083432294,-27811.27756877,0.0001,2]
[353830776,1740083438147,-1879.79073718,0.0001,2]
[353830778,1740083438160,-448.49998,0.0001,2]
[353830780,1740083438173,-2151.5578853,0.0001,2]
[353830783,1740083438185,-6442.804616,0.0001,2]
[353830785,1740083438200,-896.23823155,0.0001,2]
[353830787,1740083438212,-763.50334123,0.0001,2]
[353830790,1740083438224,-9328.43282525,0.0001,2]
[353830792,1740083438236,-40620.07807595,0.0001,2]
[353830794,1740083438246,-89895.77396658,0.0001,2]
[353830796,1740083438257,-2802.50587727,0.0001,2]
[353830798,1740083438269,-1025.0,0.0001,2]
[353830800,1740083438280,-10006.57979904,0.0001,2]
[353830802,1740083438292,-27224.33008885,0.0001,2]
[353830805,1740083438306,-1063.00136618,0.0001,2]
[353830807,1740083438317,-726.22550044,0.0001,2]
[353830809,1740083438329,-2380.87167549,0.0001,2]
[353830811,1740083438341,-18584.17613878,0.0001,2]